[Event "Titled Tuesday Blitz August 1 Early 2023"]
[White "Demidov, Mikhail"]
[Black "Sarana, Alexey"]
[WhiteFideId "4197143"]
[BlackFideId "24133795"]
[WhiteElo "2919"]
[BlackElo "3108"]
[Result "1-0"]
[Round "5"]
[TimeControl "180+1"]
[Date "2023.08.01"]
[WhiteClock "0:00:11"]
[BlackClock "0:00:00"]
[Board "3"]

1. d4 {[%clk 0:03:00]}  Nf6 {[%clk 0:03:00]} 2. Nf3 {[%clk 0:03:01]}  d5 {[%clk 0:03:00]} 3. Bf4 {[%clk 0:03:02]}  c5 {[%clk 0:02:59]} 4. dxc5 {[%clk 0:03:02]}  e6 {[%clk 0:02:59]} 5. e3 {[%clk 0:03:01]}  Bxc5 {[%clk 0:03:00]} 6. Be2 {[%clk 0:03:02]}  b6 {[%clk 0:02:59]} 7. O-O {[%clk 0:03:01]}  Bb7 {[%clk 0:02:59]} 8. c4 {[%clk 0:03:01]}  Nbd7 {[%clk 0:02:58]} 9. Nc3 {[%clk 0:03:01]}  dxc4 {[%clk 0:02:54]} 10. Bxc4 {[%clk 0:03:00]}  O-O {[%clk 0:02:53]} 11. Rc1 {[%clk 0:02:59]}  a6 {[%clk 0:02:48]} 12. a3 {[%clk 0:02:48]}  b5 {[%clk 0:02:32]} 13. Ba2 {[%clk 0:02:47]}  Qb6 {[%clk 0:02:29]} 14. Qe2 {[%clk 0:02:41]}  Rac8 {[%clk 0:02:27]} 15. Rfd1 {[%clk 0:02:40]}  Rfd8 {[%clk 0:02:27]} 16. h3 {[%clk 0:02:40]}  Be7 {[%clk 0:02:24]} 17. Bb1 {[%clk 0:02:28]}  h6 {[%clk 0:02:24]} 18. Ne5 {[%clk 0:02:17]}  Nf8 {[%clk 0:02:15]} 19. Ng4 {[%clk 0:02:11]}  Rxd1+ {[%clk 0:01:50]} 20. Qxd1 {[%clk 0:02:10]}  Rd8 {[%clk 0:01:35]} 21. Qe2 {[%clk 0:02:03]}  Rc8 {[%clk 0:01:09]} 22. Qd1 {[%clk 0:01:59]}  Qc6 {[%clk 0:00:57]} 23. Qf1 {[%clk 0:01:48]}  Nxg4 {[%clk 0:00:47]} 24. hxg4 {[%clk 0:01:48]}  Ng6 {[%clk 0:00:45]} 25. Be4 {[%clk 0:01:40]}  Qd7 {[%clk 0:00:45]} 26. Rd1 {[%clk 0:01:31]}  Bd5 {[%clk 0:00:45]} 27. Nxd5 {[%clk 0:01:28]}  exd5 {[%clk 0:00:45]} 28. Bf5 {[%clk 0:01:28]}  Qc6 {[%clk 0:00:46]} 29. Bxc8 {[%clk 0:01:28]}  Qxc8 {[%clk 0:00:46]} 30. Rxd5 {[%clk 0:01:26]}  Qxg4 {[%clk 0:00:47]} 31. Qd1 {[%clk 0:01:21]}  Qe6 {[%clk 0:00:46]} 32. Bg3 {[%clk 0:01:17]}  Bf6 {[%clk 0:00:43]} 33. b3 {[%clk 0:01:12]}  Be7 {[%clk 0:00:38]} 34. a4 {[%clk 0:01:11]}  bxa4 {[%clk 0:00:38]} 35. bxa4 {[%clk 0:01:12]}  Qc6 {[%clk 0:00:38]} 36. Qb3 {[%clk 0:01:07]}  Nf8 {[%clk 0:00:26]} 37. Rd1 {[%clk 0:00:57]}  Ne6 {[%clk 0:00:24]} 38. a5 {[%clk 0:00:55]}  Bf8 {[%clk 0:00:15]} 39. Qd5 {[%clk 0:00:52]}  Qa4 {[%clk 0:00:15]} 40. Rc1 {[%clk 0:00:47]}  Qa3 {[%clk 0:00:03]} 41. Rc8 {[%clk 0:00:45]}  Qa1+ {[%clk 0:00:02]} 42. Kh2 {[%clk 0:00:44]}  Qf6 {[%clk 0:00:03]} 43. Rc6 {[%clk 0:00:37]}  h5 {[%clk 0:00:02]} 44. Qxh5 {[%clk 0:00:34]}  g6 {[%clk 0:00:02]} 45. Qh4 {[%clk 0:00:21]}  Qf5 {[%clk 0:00:03]} 46. Rxa6 {[%clk 0:00:15]}  Nc5 {[%clk 0:00:03]} 47. Ra8 {[%clk 0:00:14]}  Ne4 {[%clk 0:00:04]} 48. Qh6 {[%clk 0:00:12]}  Qc5 {[%clk 0:00:00]} 49. a6 {[%clk 0:00:11]} 1-0


[Site "https://www.chess.com"]

[Event "Titled Tuesday Blitz August 1 Early 2023"]
[White "Aravindh, Chithambaram VR."]
[Black "Aronian, Levon"]
[WhiteFideId "5072786"]
[BlackFideId "13300474"]
[WhiteElo "2915"]
[BlackElo "3076"]
[Result "0-1"]
[Round "5"]
[TimeControl "180+1"]
[Date "2023.08.01"]
[WhiteClock "0:00:00"]
[BlackClock "0:00:12"]
[Board "4"]

1. Nf3 {[%clk 0:03:00]}  g6 {[%clk 0:02:58]} 2. e4 {[%clk 0:02:59]}  Bg7 {[%clk 0:02:58]} 3. d4 {[%clk 0:02:59]}  d6 {[%clk 0:02:58]} 4. Nc3 {[%clk 0:02:57]}  Nf6 {[%clk 0:02:58]} 5. Be2 {[%clk 0:02:56]}  O-O {[%clk 0:02:58]} 6. O-O {[%clk 0:02:56]}  e6 {[%clk 0:02:57]} 7. Bg5 {[%clk 0:02:52]}  h6 {[%clk 0:02:57]} 8. Bh4 {[%clk 0:02:52]}  Nc6 {[%clk 0:02:57]} 9. d5 {[%clk 0:02:38]}  exd5 {[%clk 0:02:47]} 10. exd5 {[%clk 0:02:23]}  Ne7 {[%clk 0:02:46]} 11. Bd3 {[%clk 0:01:57]}  g5 {[%clk 0:02:26]} 12. Nxg5 {[%clk 0:01:56]}  hxg5 {[%clk 0:02:19]} 13. Bxg5 {[%clk 0:01:56]}  Qd7 {[%clk 0:01:24]} 14. Re1 {[%clk 0:01:56]}  Ng6 {[%clk 0:01:21]} 15. h3 {[%clk 0:01:18]}  Nh7 {[%clk 0:01:20]} 16. Bd2 {[%clk 0:01:16]}  f5 {[%clk 0:01:18]} 17. f4 {[%clk 0:00:41]}  Qf7 {[%clk 0:01:04]} 18. Qf3 {[%clk 0:00:39]}  Bd7 {[%clk 0:01:03]} 19. Nb5 {[%clk 0:00:37]}  Bxb5 {[%clk 0:00:55]} 20. Bxb5 {[%clk 0:00:38]}  Nf6 {[%clk 0:00:50]} 21. Re6 {[%clk 0:00:24]}  c6 {[%clk 0:00:45]} 22. Bd3 {[%clk 0:00:06]}  cxd5 {[%clk 0:00:41]} 23. Bxf5 {[%clk 0:00:02]}  Nh4 {[%clk 0:00:41]} 24. Qd3 {[%clk 0:00:03]}  Rae8 {[%clk 0:00:32]} 25. Rxe8 {[%clk 0:00:02]}  Rxe8 {[%clk 0:00:32]} 26. Re1 {[%clk 0:00:02]}  Nxf5 {[%clk 0:00:16]} 27. Qxf5 {[%clk 0:00:02]}  Ne4 {[%clk 0:00:15]} 28. Qxf7+ {[%clk 0:00:02]}  Kxf7 {[%clk 0:00:16]} 29. Bc1 {[%clk 0:00:03]}  Bd4+ {[%clk 0:00:15]} 30. Kh2 {[%clk 0:00:03]}  Bf2 {[%clk 0:00:16]} 31. Rf1 {[%clk 0:00:03]}  Bg3+ {[%clk 0:00:16]} 32. Kg1 {[%clk 0:00:04]}  d4 {[%clk 0:00:16]} 33. f5 {[%clk 0:00:04]}  Kf6 {[%clk 0:00:16]} 34. a4 {[%clk 0:00:03]}  d5 {[%clk 0:00:16]} 35. b3 {[%clk 0:00:03]}  Rc8 {[%clk 0:00:15]} 36. Bb2 {[%clk 0:00:03]}  Be5 {[%clk 0:00:14]} 37. Rc1 {[%clk 0:00:03]}  Nc3 {[%clk 0:00:13]} 38. Kf2 {[%clk 0:00:02]}  Kxf5 {[%clk 0:00:13]} 39. g4+ {[%clk 0:00:03]}  Ke6 {[%clk 0:00:12]} 40. Kg2 {[%clk 0:00:02]}  Ne4 {[%clk 0:00:12]} 41. h4 {[%clk 0:00:00]}  Bf4 {[%clk 0:00:12]} 0-1


[Site "https://www.chess.com"]

[Event "Titled Tuesday Blitz August 1 Early 2023"]
[White "Nguyen, Ngoc Truong Son"]
[Black "Andreikin, Dmitry"]
[WhiteFideId "12401110"]
[BlackFideId "4158814"]
[WhiteElo "2909"]
[BlackElo "3046"]
[Result "0-1"]
[Round "5"]
[TimeControl "180+1"]
[Date "2023.08.01"]
[WhiteClock "0:00:09"]
[BlackClock "0:00:24"]
[Board "5"]

1. d4 {[%clk 0:03:00]}  Nf6 {[%clk 0:02:58]} 2. c4 {[%clk 0:03:00]}  e6 {[%clk 0:02:58]} 3. Nc3 {[%clk 0:03:00]}  Bb4 {[%clk 0:02:57]} 4. Nf3 {[%clk 0:03:00]}  b6 {[%clk 0:02:55]} 5. Bd2 {[%clk 0:02:57]}  Bb7 {[%clk 0:02:54]} 6. g3 {[%clk 0:02:55]}  c5 {[%clk 0:02:47]} 7. Nb5 {[%clk 0:02:51]}  O-O {[%clk 0:02:35]} 8. Bg2 {[%clk 0:02:48]}  Ne4 {[%clk 0:02:21]} 9. Bxb4 {[%clk 0:02:13]}  cxb4 {[%clk 0:02:21]} 10. Nd2 {[%clk 0:02:06]}  Nc3 {[%clk 0:01:51]} 11. bxc3 {[%clk 0:02:05]}  Bxg2 {[%clk 0:01:51]} 12. Rg1 {[%clk 0:02:06]}  bxc3 {[%clk 0:01:49]} 13. Nxc3 {[%clk 0:01:40]}  Bb7 {[%clk 0:01:49]} 14. f3 {[%clk 0:01:25]}  Nc6 {[%clk 0:01:49]} 15. e3 {[%clk 0:01:22]}  Rc8 {[%clk 0:01:45]} 16. Rc1 {[%clk 0:01:20]}  Na5 {[%clk 0:01:36]} 17. Nb5 {[%clk 0:01:16]}  Qg5 {[%clk 0:01:18]} 18. f4 {[%clk 0:01:05]}  Qh6 {[%clk 0:01:15]} 19. Qe2 {[%clk 0:01:02]}  Ba6 {[%clk 0:01:13]} 20. a4 {[%clk 0:00:49]}  d5 {[%clk 0:01:02]} 21. h4 {[%clk 0:00:43]}  dxc4 {[%clk 0:00:45]} 22. Kf2 {[%clk 0:00:42]}  Bxb5 {[%clk 0:00:45]} 23. axb5 {[%clk 0:00:42]}  Rc7 {[%clk 0:00:46]} 24. Rc2 {[%clk 0:00:39]}  Rfc8 {[%clk 0:00:44]} 25. Rgc1 {[%clk 0:00:39]}  Qg6 {[%clk 0:00:40]} 26. Rc3 {[%clk 0:00:19]}  Qf5 {[%clk 0:00:35]} 27. Rb1 {[%clk 0:00:18]}  Nb3 {[%clk 0:00:26]} 28. Nxb3 {[%clk 0:00:17]}  Qxb1 {[%clk 0:00:25]} 29. Nd2 {[%clk 0:00:16]}  Qxb5 {[%clk 0:00:25]} 30. e4 {[%clk 0:00:09]}  Qb2 {[%clk 0:00:24]} 0-1


[Site "https://www.chess.com"]

[Event "Titled Tuesday Blitz August 1 Early 2023"]
[White "Kovalenko, Igor"]
[Black "Megaranto, Susanto"]
[WhiteFideId "14117908"]
[BlackFideId "7101384"]
[WhiteElo "2849"]
[BlackElo "2978"]
[Result "1-0"]
[Round "5"]
[TimeControl "180+1"]
[Date "2023.08.01"]
[WhiteClock "0:00:30"]
[BlackClock "0:00:00"]
[Board "8"]

1. c4 {[%clk 0:03:00]}  c6 {[%clk 0:02:57]} 2. Nf3 {[%clk 0:03:00]}  d5 {[%clk 0:02:56]} 3. e3 {[%clk 0:03:01]}  Nf6 {[%clk 0:02:56]} 4. Nc3 {[%clk 0:03:02]}  a6 {[%clk 0:02:55]} 5. b3 {[%clk 0:03:00]}  Bf5 {[%clk 0:02:54]} 6. Bb2 {[%clk 0:03:00]}  e6 {[%clk 0:02:55]} 7. Be2 {[%clk 0:02:54]}  h6 {[%clk 0:02:54]} 8. O-O {[%clk 0:02:52]}  Nbd7 {[%clk 0:02:53]} 9. cxd5 {[%clk 0:02:52]}  cxd5 {[%clk 0:02:49]} 10. Nd4 {[%clk 0:02:52]}  Bh7 {[%clk 0:02:49]} 11. f4 {[%clk 0:02:52]}  Be7 {[%clk 0:02:48]} 12. Qe1 {[%clk 0:02:47]}  O-O {[%clk 0:02:45]} 13. Qg3 {[%clk 0:02:47]}  Nc5 {[%clk 0:02:44]} 14. Rad1 {[%clk 0:02:44]}  Rc8 {[%clk 0:02:32]} 15. d3 {[%clk 0:02:39]}  b5 {[%clk 0:02:32]} 16. b4 {[%clk 0:02:31]}  Nb7 {[%clk 0:02:22]} 17. a3 {[%clk 0:02:31]}  Nd6 {[%clk 0:02:22]} 18. Qf2 {[%clk 0:02:14]}  Nd7 {[%clk 0:02:07]} 19. Bg4 {[%clk 0:02:02]}  Bf6 {[%clk 0:01:51]} 20. Nce2 {[%clk 0:02:01]}  Nb6 {[%clk 0:01:46]} 21. Rd2 {[%clk 0:02:01]}  Re8 {[%clk 0:01:38]} 22. Ba1 {[%clk 0:01:57]}  a5 {[%clk 0:01:33]} 23. bxa5 {[%clk 0:01:56]}  Na4 {[%clk 0:01:34]} 24. Nb3 {[%clk 0:01:53]}  Bxa1 {[%clk 0:01:32]} 25. Rxa1 {[%clk 0:01:54]}  Nc5 {[%clk 0:01:22]} 26. Nec1 {[%clk 0:01:49]}  Qf6 {[%clk 0:01:07]} 27. Nd4 {[%clk 0:01:44]}  Ra8 {[%clk 0:00:48]} 28. Raa2 {[%clk 0:01:40]}  Rxa5 {[%clk 0:00:46]} 29. Nc6 {[%clk 0:01:22]}  Ra4 {[%clk 0:00:36]} 30. Ne5 {[%clk 0:01:21]}  Nce4 {[%clk 0:00:30]} 31. dxe4 {[%clk 0:01:21]}  Nxe4 {[%clk 0:00:31]} 32. Qe1 {[%clk 0:01:18]}  Nxd2 {[%clk 0:00:32]} 33. Qxd2 {[%clk 0:01:19]}  Rc8 {[%clk 0:00:31]} 34. Bd1 {[%clk 0:01:17]}  Ra7 {[%clk 0:00:29]} 35. Ne2 {[%clk 0:01:16]}  Qe7 {[%clk 0:00:23]} 36. Nd4 {[%clk 0:01:14]}  Rxa3 {[%clk 0:00:21]} 37. Rxa3 {[%clk 0:01:08]}  Qxa3 {[%clk 0:00:22]} 38. Bh5 {[%clk 0:00:55]}  Qc1+ {[%clk 0:00:20]} 39. Qxc1 {[%clk 0:00:55]}  Rxc1+ {[%clk 0:00:20]} 40. Kf2 {[%clk 0:00:56]}  g6 {[%clk 0:00:18]} 41. Be2 {[%clk 0:00:53]}  b4 {[%clk 0:00:19]} 42. h4 {[%clk 0:00:49]}  Rb1 {[%clk 0:00:16]} 43. g4 {[%clk 0:00:48]}  g5 {[%clk 0:00:15]} 44. hxg5 {[%clk 0:00:46]}  hxg5 {[%clk 0:00:16]} 45. f5 {[%clk 0:00:46]}  exf5 {[%clk 0:00:17]} 46. gxf5 {[%clk 0:00:47]}  b3 {[%clk 0:00:17]} 47. Bd3 {[%clk 0:00:44]}  Rb2+ {[%clk 0:00:16]} 48. Kg3 {[%clk 0:00:41]}  f6 {[%clk 0:00:17]} 49. Nef3 {[%clk 0:00:35]}  Kg7 {[%clk 0:00:14]} 50. Ne6+ {[%clk 0:00:34]}  Kh6 {[%clk 0:00:13]} 51. Nc5 {[%clk 0:00:30]}  Bg8 {[%clk 0:00:10]} 52. Nd4 {[%clk 0:00:30]}  Bf7 {[%clk 0:00:08]} 53. Ndxb3 {[%clk 0:00:30]}  Bh5 {[%clk 0:00:06]} 54. Nd4 {[%clk 0:00:30]}  Bd1 {[%clk 0:00:06]} 55. Bf1 {[%clk 0:00:30]}  Bc2 {[%clk 0:00:05]} 56. Bg2 {[%clk 0:00:30]}  Bd1 {[%clk 0:00:03]} 57. Bxd5 {[%clk 0:00:30]}  Bc2 {[%clk 0:00:04]} 58. Bf3 {[%clk 0:00:30]}  Bb1 {[%clk 0:00:04]} 59. Nce6 {[%clk 0:00:28]}  Rb8 {[%clk 0:00:04]} 60. Nc5 {[%clk 0:00:29]}  Ba2 {[%clk 0:00:04]} 61. Nd7 {[%clk 0:00:29]}  Re8 {[%clk 0:00:04]} 62. Nxf6 {[%clk 0:00:29]}  Rxe3 {[%clk 0:00:04]} 63. Ng4+ {[%clk 0:00:29]}  Kg7 {[%clk 0:00:00]} 64. Nxe3 {[%clk 0:00:30]} 1-0


[Site "https://www.chess.com"]

[Event "Titled Tuesday Blitz August 1 Early 2023"]
[White "Krzyzanowski, Marcin"]
[Black "Bok, Benjamin"]
[WhiteFideId "1132199"]
[BlackFideId "1017063"]
[WhiteElo "2799"]
[BlackElo "2963"]
[Result "1/2-1/2"]
[Round "5"]
[TimeControl "180+1"]
[Date "2023.08.01"]
[WhiteClock "0:00:04"]
[BlackClock "0:00:06"]
[Board "9"]

1. e4 {[%clk 0:03:00]}  c5 {[%clk 0:02:59]} 2. Nf3 {[%clk 0:03:00]}  d6 {[%clk 0:03:00]} 3. d4 {[%clk 0:02:59]}  cxd4 {[%clk 0:03:01]} 4. Nxd4 {[%clk 0:03:00]}  Nf6 {[%clk 0:03:01]} 5. Nc3 {[%clk 0:03:00]}  a6 {[%clk 0:03:02]} 6. Be2 {[%clk 0:02:57]}  e5 {[%clk 0:03:02]} 7. Nb3 {[%clk 0:02:56]}  Be7 {[%clk 0:03:02]} 8. O-O {[%clk 0:02:54]}  O-O {[%clk 0:03:02]} 9. Qd3 {[%clk 0:02:54]}  Be6 {[%clk 0:03:01]} 10. Bd2 {[%clk 0:02:54]}  Nbd7 {[%clk 0:03:00]} 11. Nd5 {[%clk 0:02:46]}  Bxd5 {[%clk 0:02:57]} 12. exd5 {[%clk 0:02:46]}  Ne8 {[%clk 0:02:48]} 13. Na5 {[%clk 0:02:31]}  Rb8 {[%clk 0:02:39]} 14. b4 {[%clk 0:02:17]}  Bg5 {[%clk 0:02:37]} 15. c4 {[%clk 0:02:10]}  f5 {[%clk 0:02:29]} 16. Bxg5 {[%clk 0:01:57]}  Qxg5 {[%clk 0:02:30]} 17. Rac1 {[%clk 0:01:56]}  e4 {[%clk 0:02:26]} 18. Qe3 {[%clk 0:01:18]}  Qe7 {[%clk 0:02:19]} 19. f4 {[%clk 0:01:14]}  Nef6 {[%clk 0:02:16]} 20. Rfd1 {[%clk 0:01:10]}  Qd8 {[%clk 0:02:00]} 21. Nb3 {[%clk 0:01:00]}  Qb6 {[%clk 0:01:44]} 22. Qxb6 {[%clk 0:00:40]}  Nxb6 {[%clk 0:01:45]} 23. Nd4 {[%clk 0:00:41]}  g6 {[%clk 0:01:44]} 24. Ne6 {[%clk 0:00:40]}  Rfc8 {[%clk 0:01:44]} 25. g3 {[%clk 0:00:30]}  Kf7 {[%clk 0:01:44]} 26. Kf2 {[%clk 0:00:28]}  Ke7 {[%clk 0:01:43]} 27. h3 {[%clk 0:00:23]}  h5 {[%clk 0:01:09]} 28. Ke3 {[%clk 0:00:24]}  Nbd7 {[%clk 0:00:35]} 29. c5 {[%clk 0:00:16]}  Nf8 {[%clk 0:00:24]} 30. Nxf8 {[%clk 0:00:13]}  Kxf8 {[%clk 0:00:19]} 31. cxd6 {[%clk 0:00:12]}  Nxd5+ {[%clk 0:00:17]} 32. Kd4 {[%clk 0:00:11]}  Nxb4 {[%clk 0:00:18]} 33. Ke5 {[%clk 0:00:09]}  Kf7 {[%clk 0:00:09]} 34. d7 {[%clk 0:00:06]}  Rd8 {[%clk 0:00:07]} 35. Kd6 {[%clk 0:00:06]}  Kf6 {[%clk 0:00:04]} 36. Rc7 {[%clk 0:00:06]}  b5 {[%clk 0:00:03]} 37. a3 {[%clk 0:00:06]}  Nd3 {[%clk 0:00:03]} 38. Bxd3 {[%clk 0:00:07]}  exd3 {[%clk 0:00:04]} 39. Rxd3 {[%clk 0:00:07]}  Rb6+ {[%clk 0:00:04]} 40. Rc6 {[%clk 0:00:07]}  Rb7 {[%clk 0:00:04]} 41. Rc7 {[%clk 0:00:07]}  Rb6+ {[%clk 0:00:05]} 42. Kc5 {[%clk 0:00:06]}  Re6 {[%clk 0:00:05]} 43. Rc8 {[%clk 0:00:07]}  Ke7 {[%clk 0:00:05]} 44. Rxd8 {[%clk 0:00:04]}  Kxd8 {[%clk 0:00:06]} 45. Rd6 {[%clk 0:00:03]}  Rxd6 {[%clk 0:00:05]} 46. Kxd6 {[%clk 0:00:03]}  a5 {[%clk 0:00:06]} 47. Kc5 {[%clk 0:00:03]}  b4 {[%clk 0:00:06]} 48. axb4 {[%clk 0:00:04]}  axb4 {[%clk 0:00:02]} 49. Kxb4 {[%clk 0:00:04]}  Kxd7 {[%clk 0:00:03]} 50. Kc5 {[%clk 0:00:04]}  Kc7 {[%clk 0:00:01]} 51. Kd5 {[%clk 0:00:04]}  Kd7 {[%clk 0:00:02]} 52. h4 {[%clk 0:00:05]}  Ke7 {[%clk 0:00:02]} 53. Ke5 {[%clk 0:00:05]}  Kf7 {[%clk 0:00:03]} 54. Kd5 {[%clk 0:00:05]}  Ke7 {[%clk 0:00:03]} 55. Ke5 {[%clk 0:00:05]}  Kf7 {[%clk 0:00:03]} 56. Kd6 {[%clk 0:00:06]}  Kf6 {[%clk 0:00:04]} 57. Kd7 {[%clk 0:00:06]}  Kf7 {[%clk 0:00:04]} 58. Kd6 {[%clk 0:00:04]}  Kf6 {[%clk 0:00:05]} 59. Kd5 {[%clk 0:00:02]}  Kf7 {[%clk 0:00:05]} 60. Ke5 {[%clk 0:00:02]}  Ke7 {[%clk 0:00:05]} 61. Kd5 {[%clk 0:00:03]}  Kf7 {[%clk 0:00:06]} 62. Kd6 {[%clk 0:00:04]} 1/2-1/2


[Site "https://www.chess.com"]

[Event "Titled Tuesday Blitz August 1 Early 2023"]
[White "djokovic74"]
[Black "Firouzja, Alireza"]
[BlackFideId "12573981"]
[WhiteElo "2764"]
[BlackElo "3080"]
[Result "0-1"]
[Round "5"]
[TimeControl "180+1"]
[Date "2023.08.01"]
[WhiteClock "0:00:00"]
[BlackClock "0:00:04"]
[Board "11"]

1. e4 {[%clk 0:03:00]}  c5 {[%clk 0:02:59]} 2. Nf3 {[%clk 0:03:01]}  d6 {[%clk 0:03:00]} 3. d4 {[%clk 0:03:01]}  cxd4 {[%clk 0:03:01]} 4. Nxd4 {[%clk 0:03:02]}  Nf6 {[%clk 0:03:01]} 5. Nc3 {[%clk 0:03:03]}  Nc6 {[%clk 0:03:01]} 6. Be2 {[%clk 0:03:03]}  e6 {[%clk 0:02:58]} 7. g4 {[%clk 0:02:59]}  Be7 {[%clk 0:02:51]} 8. Be3 {[%clk 0:02:54]}  Nd7 {[%clk 0:02:48]} 9. Qd2 {[%clk 0:02:48]}  a6 {[%clk 0:02:39]} 10. O-O-O {[%clk 0:02:39]}  O-O {[%clk 0:02:39]} 11. h4 {[%clk 0:02:32]}  Nxd4 {[%clk 0:02:40]} 12. Qxd4 {[%clk 0:02:31]}  b5 {[%clk 0:02:40]} 13. g5 {[%clk 0:02:17]}  Rb8 {[%clk 0:02:39]} 14. f4 {[%clk 0:02:11]}  Qa5 {[%clk 0:02:29]} 15. b3 {[%clk 0:01:33]}  Nc5 {[%clk 0:02:23]} 16. h5 {[%clk 0:01:21]}  b4 {[%clk 0:02:21]} 17. Nb1 {[%clk 0:01:21]}  Qxa2 {[%clk 0:02:01]} 18. h6 {[%clk 0:01:20]}  e5 {[%clk 0:01:52]} 19. fxe5 {[%clk 0:01:16]}  Ne6 {[%clk 0:01:11]} 20. Qd2 {[%clk 0:01:01]}  dxe5 {[%clk 0:00:36]} 21. hxg7 {[%clk 0:00:57]}  Kxg7 {[%clk 0:00:28]} 22. Bd3 {[%clk 0:00:51]}  Rh8 {[%clk 0:00:11]} 23. Qh2 {[%clk 0:00:44]}  Qa5 {[%clk 0:00:10]} 24. Rdf1 {[%clk 0:00:16]}  Kf8 {[%clk 0:00:09]} 25. Qh5 {[%clk 0:00:13]}  Ke8 {[%clk 0:00:09]} 26. Qxf7+ {[%clk 0:00:12]}  Kd8 {[%clk 0:00:08]} 27. Bc4 {[%clk 0:00:11]}  Nd4 {[%clk 0:00:04]} 28. g6 {[%clk 0:00:06]}  Bd7 {[%clk 0:00:03]} 29. g7 {[%clk 0:00:06]}  Re8 {[%clk 0:00:03]} 30. g8=Q {[%clk 0:00:05]}  Rxg8 {[%clk 0:00:04]} 31. Qxg8+ {[%clk 0:00:06]}  Kc7 {[%clk 0:00:05]} 32. Qd5 {[%clk 0:00:06]}  Qxd5 {[%clk 0:00:02]} 33. Bxd5 {[%clk 0:00:07]}  Ne2+ {[%clk 0:00:02]} 34. Kd2 {[%clk 0:00:07]}  Ng3 {[%clk 0:00:03]} 35. Rfg1 {[%clk 0:00:06]}  Nxh1 {[%clk 0:00:03]} 36. Rxh1 {[%clk 0:00:07]}  Rh8 {[%clk 0:00:02]} 37. Ke2 {[%clk 0:00:04]}  h5 {[%clk 0:00:03]} 38. Nd2 {[%clk 0:00:04]}  h4 {[%clk 0:00:03]} 39. Nf3 {[%clk 0:00:04]}  Bg4 {[%clk 0:00:03]} 40. Bd2 {[%clk 0:00:01]}  Rf8 {[%clk 0:00:03]} 41. Rf1 {[%clk 0:00:02]}  h3 {[%clk 0:00:04]} 42. Ke3 {[%clk 0:00:02]}  Bc5+ {[%clk 0:00:03]} 43. Ke2 {[%clk 0:00:02]}  Rxf3 {[%clk 0:00:03]} 44. Rxf3 {[%clk 0:00:00]}  h2 {[%clk 0:00:04]} 0-1


[Site "https://www.chess.com"]